Cogmind - Beta 14 *** ADVENTURER MODE // 2024.09.11 @ 00:00:44 Player: DeepestRoots Result: Escaped! Performance ------------- Evolutions (9) 4500 Regions Visited (26) 5200 Robots Destroyed (397) 1985 Value Destroyed (19751) 19751 Prototype IDs (101) 2020 Alien Tech Used (8) 1600 Bonus (10129) 10129 TOTAL SCORE: 45185 Bonus ------- High Alert Combat Kills 3220 Follower Combat Kills 1532 Registered with UFD 300 Met Zhirov 300 Met Warlord at Base 500 MAIN.C Attacked Warlord 500 Warlord Defense Kills 820 Scanned by Researcher 500 Win 3000 Friendly Fire -543 Cogmind --------- Core Integrity 936/1600 Matter 134/300 Energy 917/940 System Corruption 17% Temperature Cool (22) Movement Treading (161) Location To Epsilon Eridani Parts ------- > --- POWER (3) -------- Graviton Reactor Vortex Chain Reactor > --- PROPULSION (7) --- Medium Treads Improved Heavy Siege Treads Biometal Heavy Treads Advanced Heavy Siege Treads > --- UTILITY (11) ----- Advanced Cooling System Advanced Cooling System Advanced Coolant Injector Huge Storage Unit Terrain Scan Processor Quantum Capacitor Improved Transmission Jammer Heavy Reactive Plating Experimental Force Field > --- WEAPON (4) ------- Linear Accelerator Ragnarok Missile Launcher Sigix Broadsword > --- INVENTORY (25) --- Graviton Reactor Graviton Reactor Biometal Heavy Treads High-capacity Matter Pod (200) Improved Terrain Scanner Layered Heavy Armor Plating Thermal Barrier Experimental EM Disruption Field Improved Force Field Advanced Force Field Long-range Tractor Beam Splice Drone Bay (4/6) Subatomic Replicator Vortex Driver (15) Hardcell Cannon Heavy Gauss Cannon Linear Accelerator Graviton Cannon Ragnarok Missile Launcher Core Stripper Peak State ------------ > --- POWER ------------ Graviton Reactor Vortex Chain Reactor > --- PROPULSION ------- Heavy Siege Treads Heavy Siege Treads Improved Heavy Siege Treads > --- UTILITY ---------- Advanced Cooling System Huge Storage Unit Spectral Analyzer Quantum Capacitor Improved Transmission Jammer Phase Armor Experimental Force Field Phase Redirector Improved Hacking Suite > --- WEAPON ----------- Compact HERF Cannon Graviton Cannon Sigix Broadsword > --- INVENTORY -------- Graviton Reactor Graviton Reactor Biometal Heavy Treads High-capacity Matter Pod Improved Terrain Scanner Heavy Reactive Plating Thermal Barrier Experimental EM Disruption Field Improved Force Field Advanced Force Field Long-range Tractor Beam Splice Drone Bay Transdimensional Reconstructor Subatomic Replicator Vortex Driver Vortex Driver Hardcell Cannon Heavy Gauss Cannon Ragnarok Missile Launcher Ragnarok Missile Launcher Core Stripper [Rating: 232] Favorites ----------- Power Quantum Reactor Engine Heavy Ion Engine Power Core Light Nuclear Core Reactor Quantum Reactor Propulsion Light Treads Treads Light Treads Utility Spectral Analyzer Device Experimental Sensor Array Storage Huge Storage Unit Processor Spectral Analyzer Hackware Improved Hacking Suite Protection Hardened Heavy Armor Plating Artifact Phase Armor Weapon Advanced Beam Cannon Energy Gun Beam Rifle Energy Cannon Advanced Beam Cannon Ballistic Gun Assault Rifle Ballistic Cannon Improved Light Cannon Launcher Rocket Launcher Special Weapon CPS Tube Impact Weapon Heavy Hammer Slashing Weapon Sigix Broadsword Build | -11 -10 -10 -9 -9 -9 -9 -6 -6 -6 -6 -5 -5 -5 -5 -5 -5 -4 -4 -4 -4 -4 -3 -3 -3 -2 -1 ------- Run | Yrd Mat Min Mat Sto Rec Scr Fac Ext Cet Arc Fac Was Fac Upp Upp Zhi Pro Fac Upp Upp War Pro Res Qua Res Acc Slots Evolved 18 | . . . 2 . . . 6 . . . 2 . . . . . . 2 . . . . 2 . 2 2 Power 2 | . . . . . . . 1 . . . . . . . . . . . . . . . 1 . . . Propulsion 5 | . . . 1 . . . 1 . . . 1 . . . . . . 1 . . . . . . . 1 Utility 9 | . . . 1 . . . 4 . . . 1 . . . . . . 1 . . . . 1 . 1 . Weapon 2 | . . . . . . . . . . . . . . . . . . . . . . . . . 1 1 Parts Attached 480 | 7 12 14 21 44 10 8 16 43 9 12 2 7 2 8 . 1 1 53 10 2 11 7 18 74 47 41 Power 27 | 1 1 . 2 3 . . 1 3 2 . . . . . . . . 3 . . . . 3 6 1 1 Engine 10 | 1 1 . 2 3 . . 1 2 . . . . . . . . . . . . . . . . . . Core 1 | . . . . . . . . 1 . . . . . . . . . . . . . . . . . . Reactor 16 | . . . . . . . . . 2 . . . . . . . . 3 . . . . 3 6 1 1 Propulsion 59 | 2 1 . 5 7 2 . 5 6 2 . 1 2 1 . . . . 10 . . 4 . 1 4 3 3 Treads 59 | 2 1 . 5 7 2 . 5 6 2 . 1 2 1 . . . . 10 . . 4 . 1 4 3 3 Leg . | . . . . . . . . . . . . . . . . . . . . . . . . . . . Wheel . | . . . . . . . . . . . . . . . . . . . . . . . . . . . Hover . | . . . . . . . . . . . . . . . . . . . . . . . . . . . Flight . | . . . . . . . . . . . . . . . . . . . . . . . . . . . Utility 237 | 2 5 6 5 7 6 8 5 20 1 11 1 1 . 6 . 1 . 26 4 1 3 2 14 51 28 23 Device 194 | . 1 2 1 3 6 4 3 17 . 11 . 1 . 6 . 1 . 23 4 1 1 2 10 48 28 21 Storage 9 | 2 3 . 1 1 . 1 . . 1 . . . . . . . . . . . . . . . . . Processor 7 | . . . . . . 2 . 2 . . . . . . . . . . . . 1 . 1 . . 1 Hackware 4 | . . . . . . . . . . . 1 . . . . . . . . . . . 2 1 . . Protection 21 | . 1 4 3 3 . 1 2 1 . . . . . . . . . 3 . . 1 . 1 . . 1 Artifact 2 | . . . . . . . . . . . . . . . . . . . . . . . . 2 . . Weapon 157 | 2 5 8 9 27 2 . 5 14 4 1 . 4 1 2 . . 1 14 6 1 4 5 . 13 15 14 Energy Gun 19 | . 1 2 4 9 . . . 2 1 . . . . . . . . . . . . . . . . . Energy Cannon 22 | . . . . 5 . . 1 1 . . . . . . . . . . . . 1 . . 2 7 5 Ballistic Gun 17 | 2 2 1 . . . . . 8 2 1 . . . . . . . . . . . . . 1 . . Ballistic Cannon 50 | . . 2 1 6 1 . 2 . . . . . 1 1 . . 1 7 3 1 2 3 . 7 6 6 Launcher 23 | . 2 2 . . . . 1 . . . . 2 . 1 . . . 5 3 . 1 2 . 1 1 2 Special Weapon 1 | . . . . . . . . . 1 . . . . . . . . . . . . . . . . . Impact Weapon 14 | . . 1 3 . . . . 3 . . . 2 . . . . . 2 . . . . . 2 . 1 Slashing Weapon 11 | . . . 1 7 1 . 1 . . . . . . . . . . . . . . . . . 1 . Piercing Weapon . | . . . . . . . . . . . . . . . . . . . . . . . . . . . Special Melee Weapon . | . . . . . . . . . . . . . . . . . . . . . . . . . . . Unidentified Prototypes 11 | . . 2 . 1 . . . . . . . . . . . 1 . . . . . . . 6 1 . Corrupted Parts 1 | . . . . . . . . . . . . . . . . . . . . . . . . . . 1 System Corruption 3 | . . . . . . . . . . . . . . . . . . . . . . . . . . 3 Parts Lost 13 | . 1 . . . 1 . . 2 . . . 1 . . . . . 2 1 . . 1 . 2 . 2 Power 1 | . . . . . . . . . . . . . . . . . . 1 . . . . . . . . Propulsion 1 | . . . . . . . . . . . . 1 . . . . . . . . . . . . . . Utility 11 | . 1 . . . 1 . . 2 . . . . . . . . . 1 1 . . 1 . 2 . 2 Weapon . | . . . . . . . . . . . . . . . . . . . . . . . . . . . Highest Loss Streak 2 | . 1 . . . 1 . . 2 . . . 1 . . . . . 1 1 . . 1 . 1 . 1 To Critical Strikes . | . . . . . . . . . . . . . . . . . . . . . . . . . . . Average Slot Usage (%) 90 | . 96 100 98 99 99 92 91 92 82 80 77 81 77 81 82 81 82 85 92 94 93 94 93 87 70 68 Engine 7 | . 14 14 11 11 11 11 12 10 1 . . . . . . . . . . . . . . . . . Reactor 4 | . . . . . . . . . 9 13 11 11 11 11 11 11 11 9 10 10 10 10 12 13 8 7 Treads 25 | . 27 28 32 33 33 33 26 26 16 13 17 16 17 17 17 17 17 21 26 26 25 26 23 19 12 14 Device 9 | . 2 2 10 11 10 7 11 12 6 6 5 5 5 5 5 4 5 10 13 15 15 15 16 19 16 20 Storage 7 | . 14 14 11 11 11 6 6 6 6 6 5 5 5 5 5 5 5 5 5 5 5 5 4 4 4 4 Processor 7 | . . . . . . 5 13 13 20 20 17 17 17 17 17 17 17 15 15 15 15 21 16 9 6 4 Hackware 1 | . . . . . . . . . . . 1 5 5 5 5 5 5 5 5 5 4 . 3 4 4 2 Protection 6 | . 7 11 11 11 11 7 5 5 6 6 5 5 5 5 5 5 5 5 5 5 5 5 4 . . . Energy Gun 1 | . 2 12 6 3 . . . . 3 . . . . . . . . . . . . . . . . . Energy Cannon 3 | . . . . 8 11 11 6 2 . . . . . . . . . . . . . . . . 2 3 Ballistic Gun 3 | . 25 . . . . . . 9 7 12 11 5 1 . . . . . . . . . . . . . Ballistic Cannon 6 | . . 13 11 7 10 11 5 . . . . . 3 5 5 5 9 8 9 10 9 7 9 8 1 3 Peak Build Rating 232 | 7 10 18 18 24 27 35 73 78 123 122 125 129 133 133 125 126 129 153 161 157 166 168 168 212 227 232 Average Rating 78 | 5 8 12 15 20 20 22 64 73 108 119 122 126 131 126 125 125 128 138 154 156 157 165 164 183 219 218 On Entrance 103 | . 6 9 11 16 21 21 35 70 78 122 119 125 129 133 125 125 126 129 153 161 156 166 161 166 199 221 Naked Turns . | . . . . . . . . . . . . . . . . . . . . . . . . . . . Heaviest Build 225 | 19 34 35 58 63 63 69 89 101 152 153 153 153 168 168 154 154 159 160 155 144 150 146 169 222 223 225 Greatest Support 258 | 40 40 40 60 60 60 60 104 106 160 160 183 190 190 180 180 180 180 230 230 230 230 230 230 225 215 258 Greatest Overweight (x) 1 | . . . . 1 1 1 . . . . . . . . . . . 1 . . . . . 1 1 1 Average Overweight (x) . | . . . . . 1 . . . . . . . . . . . . . . . . . . . . . Largest Inventory Capacity 25 | 8 25 15 20 20 20 20 20 20 25 25 25 25 25 25 25 25 25 25 25 25 25 25 25 25 25 25 Average Capacity 19 | 7 14 15 19 20 20 13 20 20 23 25 25 25 25 25 25 25 25 25 25 25 25 25 25 25 25 25 Most Carried 25 | 2 15 15 20 20 20 20 20 20 25 25 24 25 25 25 25 25 25 25 25 24 25 25 25 25 25 25 Average Carried 18 | . 10 14 18 19 19 12 19 19 23 24 23 22 24 24 25 24 25 24 24 24 24 24 24 24 23 23 Final Capacity 25 | 8 15 15 20 20 20 20 20 20 25 25 25 25 25 25 25 25 25 25 25 25 25 25 25 25 25 25 Final Carried 25 | 2 15 15 20 20 19 20 20 20 25 25 23 25 25 25 25 25 25 25 24 24 25 24 25 25 25 23 Class Distribution -------------------- 38% | Mutant 20% | Commander-Mutant 14% | Hacker-Mutant 13% | Hacker-Skirmisher 6% | Scavenger-Mutant 4% | Scavenger-Skirmisher Dominant Class ---------------- Mutant | -10/Materials Mutant | -10/Mines Mutant | -9/Materials Mutant | -9/Storage Mutant | -9/Recycling Commander-Mutant | -9/Scraptown Mutant | -6/Factory Commander-Mutant | -6/Extension Scavenger-Skirmisher | -6/Cetus Scavenger-Mutant | -6/Archives Scavenger-Mutant | -5/Factory Scavenger-Skirmisher | -5/Waste Hacker-Skirmisher | -5/Factory Hacker-Skirmisher | -5/Upper Caves Hacker-Skirmisher | -5/Upper Caves Hacker-Skirmisher | -5/Zhirov Hacker-Skirmisher | -4/Proximity Caves Scavenger-Skirmisher | -4/Factory Hacker-Skirmisher | -4/Upper Caves Hacker-Skirmisher | -4/Upper Caves Hacker-Skirmisher | -4/Warlord Skirmisher | -3/Proximity Caves Hacker-Mutant | -3/Research Hacker-Mutant | -3/Quarantine Hacker-Mutant | -2/Research Hacker-Mutant | -1/Access Resources | -11 -10 -10 -9 -9 -9 -9 -6 -6 -6 -6 -5 -5 -5 -5 -5 -5 -4 -4 -4 -4 -4 -3 -3 -3 -2 -1 ----------- Run | Yrd Mat Min Mat Sto Rec Scr Fac Ext Cet Arc Fac Was Fac Upp Upp Zhi Pro Fac Upp Upp War Pro Res Qua Res Acc Matter Collected 13355 | 288 687 215 350 559 259 128 219 1158 186 252 . 313 . 241 98 . 87 2397 366 68 320 262 587 2584 736 995 Remotely 6984 | . . . . . . . . 188 . 74 . . . 174 . . . 2135 270 . . . 371 2243 686 843 Salvage Created 17129 | 69 856 283 654 923 1130 2 248 1419 230 358 . 363 . 45 . . 114 2557 203 72 217 133 394 1746 2717 2396 Parts 694 | 2 35 10 36 44 36 . 10 66 15 14 . . . . . . 9 95 10 1 14 2 10 60 123 102 Haulers Intercepted 9 | . 2 . 2 4 . . . . . . . . . . . . . 1 . . . . . . . . Recyclers Shooed 18 | . . . . 1 6 . . 2 . . . . . . . . . 4 . . . . . . 3 2 Parts Field Recycled . | . . . . . . . . . . . . . . . . . . . . . . . . . . . Retrieved Matter . | . . . . . . . . . . . . . . . . . . . . . . . . . . . Parts Self-Destructed 43 | . . . . . . . . . . . . . . 9 . . 20 . 11 1 . 2 . . . . Prevented . | . . . . . . . . . . . . . . . . . . . . . . . . . . . Kills | -11 -10 -10 -9 -9 -9 -9 -6 -6 -6 -6 -5 -5 -5 -5 -5 -5 -4 -4 -4 -4 -4 -3 -3 -3 -2 -1 ------- Run | Yrd Mat Min Mat Sto Rec Scr Fac Ext Cet Arc Fac Was Fac Upp Upp Zhi Pro Fac Upp Upp War Pro Res Qua Res Acc Combat Hostiles Destroyed 291 | . 14 6 9 13 7 . 7 23 4 4 . 2 . 2 . . 2 59 9 1 7 5 6 41 31 39 Melee 4 | . . . . . . . . . . . . . . . . . . . . . 1 . . . 3 . Guns 48 | . 11 1 4 2 . . . 21 4 4 . . . . . . . . . . . . . 1 . . Cannons 144 | . . 2 5 10 7 . 4 1 . . . . . 1 . . 1 28 2 1 6 5 6 35 11 19 AOE 69 | . 3 3 . . . . 2 . . . . 2 . 1 . . 1 31 7 . . . . 3 6 10 Classes Destroyed 30 | 1 4 3 2 1 1 . 1 2 . . . 1 . 1 . . . 6 2 . 1 . . 2 1 1 Worker 14 | . 1 . 1 1 . . . . . . . . . . . . . . . . . . . 4 3 4 Builder 13 | . . . . . . . . 2 . . . . . . . . . 4 . . . . . 3 1 3 Tunneler 3 | . . . . . . . . . . . . . . . . . . 2 . . . . . . 1 . Hauler 9 | . 2 . 2 4 . . . . . . . . . . . . . 1 . . . . . . . . Recycler 34 | 1 2 2 2 3 13 . . 1 . . . . . . . . . 3 . . . . 1 1 4 1 Carrier 1 | . . . . . . . . . . . . . . . . . . 1 . . . . . . . . Minesweeper 1 | . . . . . . . . . . . . . . 1 . . . . . . . . . . . . Mechanic 1 | . . . . . . . . . . . . . . . . . . 1 . . . . . . . . Operator 4 | . . . . 1 . . . . . 1 . . . . . . . 1 . . . . 1 . . . Watcher 27 | . 3 . 3 2 . . 1 2 . . . . . . . . . 2 . . . . 2 2 2 8 Swarmer 48 | . . 3 . 3 . . . 3 . . . . . . . . . 8 5 . 1 3 . . 9 13 Saboteur 3 | . . . . . . . . . . . . . . . . . . 1 . . 2 . . . . . Grunt 103 | . 14 . 5 5 1 1 3 6 . . . . . 2 . . . 26 3 . 1 1 2 22 7 4 Brawler 2 | . . . . . . . . . . . . . . . . . . . 1 . . . . . 1 . Duelist 11 | . . . 1 1 . . 1 . . . . . . . . . . 7 . . . . . . 1 . Protector 2 | . . . . . 2 . . . . . . . . . . . . . . . . . . . . . Researcher 1 | . . . . . . . . . . . . . . . . . . . . . . . . 1 . . Sentry 37 | . . . 3 4 3 . 1 10 . 4 . . . . . . 1 4 . 1 . 1 1 . 1 3 Demolisher 3 | . . 2 . . 1 . . . . . . . . . . . . . . . . . . . . . Specialist 4 | . . . . . . . . . . . . . . . . . . 1 . . . . . 1 . 2 Hunter 29 | . . . . . . . . 4 . . . . . . . . . 5 . . . . . 6 8 6 Programmer 33 | . . . . . . . 2 . . . . . . . . . 1 6 . . 2 . 3 11 2 6 Q-Series 4 | . . . . . . . . . . . . . . . . . . . . . . . . . 2 2 Behemoth 3 | . . . . . . . . . . . . . . . . . . . . . . . . . . 3 Compactor 2 | . . . . . . . . . . . . 2 . . . . . . . . . . . . . . Cetus Guard 4 | . . . . . . . . . 4 . . . . . . . . . . . . . . . . . Striker 1 | . . . . . . . . . . . . . . . . . . 1 . . . . . . . . Executioner 1 | . . . . . . . . . . . . . . . . . . . . . 1 . . . . . Fortress 1 | . . . . . . . . . . . . . . . . . . . . . . . . 1 . . Samaritan 2 | . . . . . . . . . . . . . . . . . . . 2 . . . . . . . Assembled 1 | . . 1 . . . . . . . . . . . . . . . . . . . . . . . . Thug 1 | . . 1 . . . . . . . . . . . . . . . . . . . . . . . . Best Kill Streak 19 | 1 3 3 5 5 5 . 3 4 4 1 . 1 . 3 . . 1 19 6 1 3 4 3 8 7 13 Combat Bots Only 16 | . 3 3 3 4 4 . 3 3 4 1 . 1 . 2 . . 1 16 5 1 3 4 3 5 6 8 Max Kills in Single Turn 6 | 1 2 3 2 1 1 1 2 1 1 1 . 1 . 1 . . 1 5 3 1 1 1 2 2 6 4 Gunslinging 1 | . 1 . . . . . . . . . . . . . . . . . . . . . . . . . Exploded 4 | . 2 3 . . . . 2 . . . . 1 . 1 . . 1 4 3 . . . . 2 2 3 Melee 1 | . . . . . . . . . . . . . . . . . . . . . 1 . . . 1 . Uniques/NPCs Destroyed . | . . . . . . . . . . . . . . . . . . . . . . . . . . . Combat | -11 -10 -10 -9 -9 -9 -9 -6 -6 -6 -6 -5 -5 -5 -5 -5 -5 -4 -4 -4 -4 -4 -3 -3 -3 -2 -1 -------- Run | Yrd Mat Min Mat Sto Rec Scr Fac Ext Cet Arc Fac Was Fac Upp Upp Zhi Pro Fac Upp Upp War Pro Res Qua Res Acc Hostile Shots Fired 2073 | . 50 8 30 27 14 . 47 438 25 21 . 2 . 1 . . . 343 5 2 20 30 59 423 156 372 Missed 505 | . 12 2 7 5 . . 21 138 8 2 . . . 1 . . . 78 1 1 5 3 13 107 44 57 Damage Taken 16384 | . 421 187 290 232 163 . 315 1581 395 300 . 311 . 13 . . . 3750 178 11 235 431 713 2043 1576 3239 Core 2309 | . 9 108 23 71 9 . 3 118 72 15 . 19 . . . . . 195 . . . . 47 409 630 581 Absorbed by Shields 6753 | . . . . . 42 . 83 552 . 58 . . . . . . . 822 62 4 . 70 180 2181 321 2378 Reduced by Siege Mode 1324 | . . . . . . . . . . 15 . . . . . . . 495 11 6 4 13 61 147 85 487 Redirected to Core 1350 | . . . . . . . . . . . . . . . . . . . . . . . . 299 583 468 Ignored by Resistances 7858 | . 129 51 82 69 57 . 108 688 107 98 . 86 . 4 . . . 1301 15 4 66 136 242 1527 743 2345 Regen/Repaired (Parts) 2968 | . 87 . . . . . . . . . . 149 340 13 . . . 133 . . 12 . . 933 687 614 Core Remaining (%) 73 | 100 . 53 . . . 74 . . . 75 . . . . . . 98 . . . . 83 . 60 56 58 Volleys Fired 1125 | 3 58 29 35 54 39 2 24 110 11 20 . 26 . 19 14 . 5 146 13 3 29 13 42 148 99 183 Largest 2 | 2 2 2 2 2 2 1 2 2 2 2 . 1 . 1 1 . 2 2 2 2 2 2 2 2 1 2 Hottest 275 | 40 76 91 95 107 107 39 107 98 58 275 . 35 . 57 57 . 114 118 121 117 117 117 117 155 94 159 Shots Fired 1686 | 6 110 32 68 98 76 2 45 194 20 36 . 26 . 19 14 . 7 207 20 6 50 22 64 277 99 188 Gun 423 | 6 104 15 33 30 . . . 167 18 36 . 9 . . . . . . . . . . . 5 . . Cannon 1164 | . . 16 35 68 76 2 42 27 . . . . . 17 14 . 5 154 16 6 50 22 64 270 96 184 Launcher 97 | . 6 1 . . . . 3 . . . . 17 . 2 . . 2 53 4 . . . . 2 3 4 Special 2 | . . . . . . . . . 2 . . . . . . . . . . . . . . . . . Kinetic 1191 | 6 102 16 35 33 39 2 21 166 18 33 . 9 . 17 14 . 5 154 16 6 50 22 64 273 16 74 Thermal 175 | . 2 15 33 37 37 . 21 27 . 3 . . . . . . . . . . . . . . . . Explosive 97 | . 6 1 . . . . 3 . . . . 17 . 2 . . 2 53 4 . . . . 2 3 4 Electromagnetic 176 | . . . . 28 . . . 1 . . . . . . . . . . . . . . . 2 80 65 Entropic 45 | . . . . . . . . . . . . . . . . . . . . . . . . . . 45 Robot Hit Streak 52 | 5 24 30 31 37 33 8 10 25 16 37 . 23 . 12 1 . 1 19 25 13 15 19 20 35 52 37 Robot Miss Streak 5 | . 2 . 3 3 1 . 2 5 1 1 . 1 . . 1 . 1 2 1 . 2 1 1 2 1 2 Penetration Max 1 | . . . . . . . . 1 1 1 . . . . . . . 1 . . 1 . 1 . . 1 Secondary Targets 4 | . 1 . . . . . . 2 1 . . . . . . . . . . . . . . . . . Max Gunslinging Chain 1 | . 1 . . . . . . 1 1 . . . . . . . . . . . . . . . . . Capacitor 169 | . . . . . . . . . . . . . . . . . . . . . . . . . 64 105 Shots Hit Robots 1274 | 5 94 22 51 61 57 1 33 149 18 34 . 19 . 3 1 . 1 146 15 5 34 16 45 214 97 153 Core Hits 732 | 2 40 13 23 24 19 . 22 116 8 12 . 6 . 7 . . 3 191 14 2 13 8 18 89 43 59 Critical Kills 26 | . . . . . 2 . 1 4 . 3 . . . . . . 1 14 . . . . . 1 . . Critical Parts Destroyed 23 | . 1 . . . . . . 2 2 2 . . . . . . . 16 . . . . . . . . Critical Strikes 124 | . 1 2 6 . 2 . 2 8 3 6 . . . 1 . . 1 42 . . 4 1 7 21 3 14 Burn 7 | . . 2 5 . . . . . . . . . . . . . . . . . . . . . . . Meltdown 4 | . . . . . 2 . 1 1 . . . . . . . . . . . . . . . . . . Destroy 51 | . 1 . . . . . . 7 3 6 . . . . . . 1 32 . . . . . 1 . . Blast 52 | . . . 1 . . . 1 . . . . . . 1 . . . 10 . . 4 1 7 20 2 5 Corrupt 2 | . . . . . . . . . . . . . . . . . . . . . . . . . 1 1 Sunder 8 | . . . . . . . . . . . . . . . . . . . . . . . . . . 8 Melee Attacks 79 | . . 2 12 12 1 . 1 21 . . . 5 . . . . . 4 . . . . . 3 9 9 Kinetic 3 | . . . . . . . . . . . . . . . . . . . . . . . . 2 . 1 Impact 35 | . . 2 2 . . . . 21 . . . 5 . . . . . 4 . . . . . 1 . . Slashing 41 | . . . 10 12 1 . 1 . . . . . . . . . . . . . . . . . 9 8 Piercing . | . . . . . . . . . . . . . . . . . . . . . . . . . . . Sneak Attacks 6 | . . . 2 2 . . . 1 . . . . . . . . . . . . . . . . . 1 Combat Hostiles . | . . . . . . . . . . . . . . . . . . . . . . . . . . . Follow-up Attacks . | . . . . . . . . . . . . . . . . . . . . . . . . . . . Damage Inflicted 54088 | 62 1560 514 1010 1689 1219 24 1053 3400 411 723 . 1554 . 199 33 . 48 10604 1689 74 1144 491 1661 8138 5833 10955 Guns 6137 | 62 1110 202 298 340 . . . 2855 411 723 . 82 . . . . . . . . . . . 54 . . Cannons 31487 | . . 139 593 1101 1219 24 702 473 . . . . . 60 33 . 26 3909 481 74 1144 491 1661 7040 3767 8550 Explosions 14782 | . 450 173 . 95 . . 328 . . . . 1472 . 139 . . 22 6671 1208 . . . . 790 1402 2032 Melee 1426 | . . . 119 144 . . . 72 . . . . . . . . . . . . . . . 61 664 366 Ramming 256 | . . . . 9 . . 23 . . . . . . . . . . 24 . . . . . 193 . 7 Kinetic 25166 | 62 1095 139 593 502 573 24 280 2855 411 634 . 82 . 60 33 . 26 3909 481 74 1144 491 1661 7155 610 2272 Thermal 3603 | . 15 202 298 694 646 . 422 473 . 89 . . . . . . . 514 . . . . . . . 250 Explosive 13923 | . 450 173 . . . . 328 . . . . 1472 . 139 . . 22 6157 1208 . . . . 790 1402 1782 Electromagnetic 6115 | . . . . 340 . . . . . . . . . . . . . . . . . . . . 3157 2618 Impact 72 | . . . . . . . . 72 . . . . . . . . . . . . . . . . . . Slashing 1293 | . . . 119 144 . . . . . . . . . . . . . . . . . . . . 664 366 Piercing . | . . . . . . . . . . . . . . . . . . . . . . . . . . . Entropic 3660 | . . . . . . . . . . . . . . . . . . . . . . . . . . 3660 Highest Corruption 17 | . . . . . . . . . . . . . . . . . . 4 7 7 7 . 1 14 5 17 Average Corruption 6 | . . . . . . . . . . . . . . . . . . 2 5 7 7 . 1 5 1 11 Corruption Purged 4 | . . . . . . . . . . . . . . . . . . . . . . . . 4 . . Corruption Blocked . | . . . . . . . . . . . . . . . . . . . . . . . . . . . Effects 126 | . . . . . . . . . . . . . . . . . . 7 10 11 2 . 3 43 3 47 Message Errors 24 | . . . . . . . . . . . . . . . . . . 1 2 . . . 1 10 . 10 Matter Fused 32 | . . . . . . . . . . . . . . . . . . 2 4 1 1 . 1 14 . 9 Heat Flow Errors 15 | . . . . . . . . . . . . . . . . . . . 1 3 . . . 2 1 8 Energy Discharges 17 | . . . . . . . . . . . . . . . . . . . 1 5 . . . 3 2 6 Parts Rejected 1 | . . . . . . . . . . . . . . . . . . . . . . . . 1 . . Parts Fused 2 | . . . . . . . . . . . . . . . . . . . . . . . . 1 . 1 Data Loss (minor) 11 | . . . . . . . . . . . . . . . . . . 2 2 1 . . . 3 . 3 Data Loss (major) 6 | . . . . . . . . . . . . . . . . . . 1 . . . . . 2 . 3 Misfires 3 | . . . . . . . . . . . . . . . . . . . . . . . 1 2 . . Alerts 6 | . . . . . . . . . . . . . . . . . . . . 1 1 . . 3 . 1 Misdirections 2 | . . . . . . . . . . . . . . . . . . . . . . . . . . 2 Weapon Failures 7 | . . . . . . . . . . . . . . . . . . 1 . . . . . 2 . 4 Overload Shots 1 | . . . . . . . . . . 1 . . . . . . . . . . . . . . . . Overflow Damage 1963 | . . 21 21 25 39 21 38 42 . . . . . . . . . 214 143 . 17 20 72 281 254 755 Projectiles 1084 | . . . . 13 39 21 38 . . . . . . . . . . 129 . . 17 20 72 229 118 388 Explosions 664 | . . 21 . 12 . . . . . . . . . . . . . 85 143 . . . . . 110 293 Melee 215 | . . . 21 . . . . 42 . . . . . . . . . . . . . . . 52 26 74 Knockbacks 182 | . . 2 2 6 8 . 4 1 . . . . . . . . . 36 . . 5 4 13 76 3 22 Impact 1 | . . . . . . . . 1 . . . . . . . . . . . . . . . . . . Kinetic 165 | . . 2 2 6 7 . 4 . . . . . . . . . . 36 . . 5 4 12 64 3 20 Secondary 16 | . . . . . 1 . . . . . . . . . . . . . . . . . 1 12 . 2 Self-Inflicted Damage 427 | . 18 16 . 39 . . . . . . . 262 . . . . . 61 . . . . . . . 31 Shots 18 | . 1 1 . 1 . . . . . . . 9 . . . . . 5 . . . . . . . 1 Rammed 9 | . . . . 1 . . . . . . . . . . . . . 1 . . . . . 6 . 1 Targets Rammed 10 | . . . . 1 . . 1 . . . . . . . . . . 1 . . . . . 6 . 1 Kicked . | . . . . . . . . . . . . . . . . . . . . . . . . . . . Crushed 1 | . . . . . . . 1 . . . . . . . . . . . . . . . . . . . Highest Temperature 455 | . 25 264 133 120 330 . 357 282 189 389 . 120 . 212 230 . 84 434 262 218 9 6 42 224 455 392 Average Temperature 83 | . 8 114 35 34 133 . 113 80 27 126 . 34 . 79 93 . 36 120 89 99 9 3 14 82 142 81 Received Heat Transfer 2527 | . 279 . 138 75 36 . 75 474 63 57 . . . . . . . 735 8 . 9 21 53 358 78 68 Effects 26 | . . 1 . . 3 . . . . 5 . . . 2 . . . 11 . . . . . . . 4 Shutdowns 6 | . . . . . . . . . . 2 . . . . . . . 3 . . . . . . . 1 Interference 20 | . . 1 . . 3 . . . . 3 . . . 2 . . . 8 . . . . . . . 3 Siege Activations 67 | . . . . . . . . . . 2 . . . . . . 1 10 1 1 3 2 3 17 13 14 Total Turns 1363 | . . . . . . . . . . 44 . . . . . . 3 314 23 10 77 27 70 393 171 231 Longest Duration 101 | . . . . . . . . . . 30 . . . . . . 3 101 23 10 46 19 31 57 30 49 Robots Corrupted 29 | . . . . 1 . . . 1 . . . . . . . . . . . . . . . 2 14 11 Combat Hostiles 22 | . . . . 1 . . . . . . . . . . . . . . . . . . . 1 11 9 Parts Fried 69 | . . . . 7 . . . 4 . . . . . . . . . . . . . . . 2 30 26 Impact Corruptions 6 | . . . . . 1 . . 2 . . . . . . . . . . . . . . . 3 . . Robots Melted 4 | . . . . . 2 . 1 1 . . . . . . . . . . . . . . . . . . Combat Hostiles 2 | . . . . . . . 1 1 . . . . . . . . . . . . . . . . . . Parts Melted 11 | . . . 1 1 4 . 1 4 . . . . . . . . . . . . . . . . . . Heat Transferred 6224 | . 37 666 1110 1186 1184 . 666 851 . 124 . . . . . . . 300 . . . . . . . 100 Parts Sabotaged 4 | . . . . . . . . . . . . . . . . . . . . . 4 . . . . . Parts Stolen . | . . . . . . . . . . . . . . . . . . . . . . . . . . . Parts Stripped 38 | . . . . . . . . . . . . . . . . . . . . . . . . 18 . 20 Power Chain Reactions 3 | . . . . 2 . . . . . . . . . . . . . . . . . . . . . 1 Alert | -11 -10 -10 -9 -9 -9 -9 -6 -6 -6 -6 -5 -5 -5 -5 -5 -5 -4 -4 -4 -4 -4 -3 -3 -3 -2 -1 ------- Run | Yrd Mat Min Mat Sto Rec Scr Fac Ext Cet Arc Fac Was Fac Upp Upp Zhi Pro Fac Upp Upp War Pro Res Qua Res Acc Peak Influence 1926 | 5 206 96 186 217 95 . 150 288 80 161 1 83 44 . . . . 1926 . . . . 205 461 544 968 Initial 250 | . . . . 20 . . . 2 . 27 1 . . . . . . 150 . . . . 47 93 37 250 Average 134 | 2 28 17 74 36 24 . 50 60 66 92 1 20 33 . . . . 978 . . . . 123 224 266 502 Maximum Alert Level 5 | . 1 . . 1 . . . 1 . . . . . . . . . 5 . . . . 1 2 2 3 Low Security (%) 81 | 100 97 100 100 97 100 . 100 94 100 100 100 100 100 . . . . 6 . . . . 99 48 42 9 Level 1 8 | . 2 . . 2 . . . 5 . . . . . . . . . 2 . . . . . 34 31 36 Level 2 5 | . . . . . . . . . . . . . . . . . . 25 . . . . . 17 25 22 Level 3 2 | . . . . . . . . . . . . . . . . . . 25 . . . . . . . 31 Level 4 1 | . . . . . . . . . . . . . . . . . . 27 . . . . . . . . Level 5 . | . . . . . . . . . . . . . . . . . . 12 . . . . . . . . High Security . | . . . . . . . . . . . . . . . . . . . . . . . . . . . Max Security . | . . . . . . . . . . . . . . . . . . . . . . . . . . . Squads Dispatched 63 | . 1 . . 1 . . 5 3 . . . . 1 . . . . 17 . . . . 3 10 8 14 Investigation 14 | . 1 . . 1 . . 1 2 . . . . . . . . . 1 . . . . 1 2 3 2 Extermination 16 | . . . . . . . 1 . . . . . 1 . . . . 2 . . . . 1 5 3 3 Reinforcement 17 | . . . . . . . 3 1 . . . . . . . . . 5 . . . . 1 3 1 3 Assault 7 | . . . . . . . . . . . . . . . . . . 4 . . . . . . 1 2 Garrison 9 | . . . . . . . . . . . . . . . . . . 5 . . . . . . . 4 Intercept . | . . . . . . . . . . . . . . . . . . . . . . . . . . . Searches Triggered . | . . . . . . . . . . . . . . . . . . . . . . . . . . . Construction Impeded 4 | . . . . . . . . . . . . . . . . . . 4 . . . . . . . . Haulers Reinforced 2 | . . . . . . . 1 . . . . . . . . . . . . . . . 1 . . . Active Scanning Responses . | . . . . . . . . . . . . . . . . . . . . . . . . . . . Cargo Convoy Interrupts 1 | . . . . . . . . . . . . . . . . . . 1 . . . . . . . . Stealth | -11 -10 -10 -9 -9 -9 -9 -6 -6 -6 -6 -5 -5 -5 -5 -5 -5 -4 -4 -4 -4 -4 -3 -3 -3 -2 -1 --------- Run | Yrd Mat Min Mat Sto Rec Scr Fac Ext Cet Arc Fac Was Fac Upp Upp Zhi Pro Fac Upp Upp War Pro Res Qua Res Acc Distress Signals 10 | . 1 . 1 2 . . . . 1 . . . . . . . . 2 . . . . . 1 1 1 Communications Jammed 113 | . . . . . . . . . . . . . . . . . . 2 . . . . 4 33 35 39 Distress Signals 111 | . . . . . . . . . . . . . . . . . . 2 . . . . 4 33 33 39 Times Spotted 477 | . 23 6 12 21 3 . 11 38 5 4 . 6 1 7 3 . 3 85 8 1 52 5 17 65 44 57 Peak Tracking Total 13 | . 3 3 4 3 1 . 5 6 5 1 . 4 1 5 3 . 2 9 5 . 13 4 5 7 6 8 Tactical Retreats 9 | . 1 . . 1 . . 1 1 . . . . . . . . . 1 . . . . . 2 1 1 Traps | -11 -10 -10 -9 -9 -9 -9 -6 -6 -6 -6 -5 -5 -5 -5 -5 -5 -4 -4 -4 -4 -4 -3 -3 -3 -2 -1 ------- Run | Yrd Mat Min Mat Sto Rec Scr Fac Ext Cet Arc Fac Was Fac Upp Upp Zhi Pro Fac Upp Upp War Pro Res Qua Res Acc Traps Triggered 9 | . 1 . 1 . . . 2 . . . 1 . . . . . . 1 . . . . 1 1 . 1 Indirectly . | . . . . . . . . . . . . . . . . . . . . . . . . . . . Trap Hack Attempts . | . . . . . . . . . . . . . . . . . . . . . . . . . . . Triggered . | . . . . . . . . . . . . . . . . . . . . . . . . . . . Disarmed . | . . . . . . . . . . . . . . . . . . . . . . . . . . . Reprogrammed 6 | . . . . . . . . . . . . . . . . . . 6 . . . . . . . . Reused . | . . . . . . . . . . . . . . . . . . . . . . . . . . . Traps Extracted . | . . . . . . . . . . . . . . . . . . . . . . . . . . . Installed . | . . . . . . . . . . . . . . . . . . . . . . . . . . . Triggered 5 | . . . . . . . . . . . . . . 2 . . . . . . 3 . . . . . Machines | -11 -10 -10 -9 -9 -9 -9 -6 -6 -6 -6 -5 -5 -5 -5 -5 -5 -4 -4 -4 -4 -4 -3 -3 -3 -2 -1 ---------- Run | Yrd Mat Min Mat Sto Rec Scr Fac Ext Cet Arc Fac Was Fac Upp Upp Zhi Pro Fac Upp Upp War Pro Res Qua Res Acc Machines Disabled 50 | . . . . 7 . . 1 5 . 2 . . . . . . . 17 . . . . 2 9 2 5 Max in Single Turn 2 | . . . . 1 . . 1 1 . 1 . . . . . . . 2 . . . . 1 1 1 2 Garrison Access 7 | . . . . 1 . . . . . . 1 . . . . . . 1 . . . . 1 1 1 1 Machines Repaired . | . . . . . . . . . . . . . . . . . . . . . . . . . . . Machines Dismantled . | . . . . . . . . . . . . . . . . . . . . . . . . . . . Machines Sabotaged . | . . . . . . . . . . . . . . . . . . . . . . . . . . . Overloaded Fab Kills . | . . . . . . . . . . . . . . . . . . . . . . . . . . . Hacking | -11 -10 -10 -9 -9 -9 -9 -6 -6 -6 -6 -5 -5 -5 -5 -5 -5 -4 -4 -4 -4 -4 -3 -3 -3 -2 -1 --------- Run | Yrd Mat Min Mat Sto Rec Scr Fac Ext Cet Arc Fac Was Fac Upp Upp Zhi Pro Fac Upp Upp War Pro Res Qua Res Acc Machines Accessed 94 | . 8 1 3 14 8 2 4 12 1 1 1 . 1 . . 4 . 5 . 1 1 . 5 9 6 7 Terminals 59 | . 6 . 3 12 5 . 3 11 1 . . . 1 . . . . 3 . . . . 3 6 2 3 Fabricators 2 | . . . . . . . 1 . . . . . . . . . . 1 . . . . . . . . Repair Stations 10 | . 1 . . 1 . . . . . . . . . . . . . 1 . . . . 1 2 2 2 Recycling Units 5 | . 1 . . . 3 . . 1 . . . . . . . . . . . . . . . . . . Scanalyzers . | . . . . . . . . . . . . . . . . . . . . . . . . . . . Garrison Access 8 | . . . . 1 . . . . . . 1 . . . . . . . . . . . 1 1 2 2 Total Hacks 271 | . 31 1 11 40 19 11 16 31 2 7 1 . 2 . . 16 . 12 . 1 1 . 13 26 17 13 Successful 168 | . 24 1 4 28 16 11 10 12 . 7 1 . 2 . . 16 . 8 . 1 1 . 6 11 6 3 Failed 103 | . 7 . 7 12 3 . 6 19 2 . . . . . . . . 4 . . . . 7 15 11 10 Catastrophic 13 | . . . . . . . 1 1 . . . . . . . . . 1 . . . . . 1 4 5 Database Lockouts . | . . . . . . . . . . . . . . . . . . . . . . . . . . . Manual 102 | . 17 . 7 23 17 . 10 12 . . . . . . . . . 5 . . . . 4 7 . . Terminals 173 | . 25 . 11 34 16 . 14 29 2 . . . 2 . . . . 8 . . . . 8 15 4 5 Fabricators 3 | . . . . . . . 2 . . . . . . . . . . 1 . . . . . . . . Repair Stations 36 | . 3 . . 5 . . . . . . . . . . . . . 3 . . . . 3 9 9 4 Recycling Units 8 | . 3 . . . 3 . . 2 . . . . . . . . . . . . . . . . . . Scanalyzers . | . . . . . . . . . . . . . . . . . . . . . . . . . . . Garrison Access 14 | . . . . 1 . . . . . . 1 . . . . . . . . . . . 2 2 4 4 Terminal Hacks 93 | . 12 1 1 14 5 11 4 8 . 7 . . 2 . . 16 . 3 . 1 1 . 3 3 1 . Record 23 | . . . . . . 11 . . . 7 . . . . . 4 . . . 1 . . . . . . Part Schematic 4 | . . . . . . . . . . . . . . . . 4 . . . . . . . . . . Robot Analysis 9 | . 4 . . . 1 . . . . . . . . . . 4 . . . . . . . . . . Prototype ID Bank 16 | . 4 . . 2 4 . 1 1 . . . . . . . 4 . . . . . . . . . . Open Door 12 | . . 1 . 5 . . . 5 . . . . . . . . . . . . 1 . . . . . Level Access Points 1 | . . . . . . . . . . . . . . . . . . . . . . . 1 . . . Branch Access Points 4 | . . . 1 . . . 1 . . . . . 1 . . . . 1 . . . . . . . . Terminal Index 3 | . . . . 1 . . . . . . . . 1 . . . . . . . . . 1 . . . Garrison Index 1 | . . . . . . . . . . . . . . . . . . 1 . . . . . . . . Alert Level 3 | . 1 . . 1 . . . . . . . . . . . . . . . . . . . 1 . . Unreport Threat 4 | . . . . 1 . . 1 . . . . . . . . . . . . . . . . 1 1 . Locate Traps 8 | . 1 . . 4 . . . 2 . . . . . . . . . . . . . . . 1 . . Reprogram Traps 1 | . . . . . . . . . . . . . . . . . . 1 . . . . . . . . Hauler Manifests 2 | . 2 . . . . . . . . . . . . . . . . . . . . . . . . . Zone Layout 2 | . . . . . . . 1 . . . . . . . . . . . . . . . 1 . . . Fabricator Hacks 1 | . . . . . . . 1 . . . . . . . . . . . . . . . . . . . Network Status 1 | . . . . . . . 1 . . . . . . . . . . . . . . . . . . . Repair Station Hacks 16 | . 2 . . 1 . . . . . . . . . . . . . 2 . . . . . 5 4 2 Scan Component 11 | . 1 . . 1 . . . . . . . . . . . . . 2 . . . . . 3 2 2 Repair 5 | . 1 . . . . . . . . . . . . . . . . . . . . . . 2 2 . Recycling Unit Hacks 1 | . 1 . . . . . . . . . . . . . . . . . . . . . . . . . Retrieve Components 1 | . 1 . . . . . . . . . . . . . . . . . . . . . . . . . Scanalyzer . | . . . . . . . . . . . . . . . . . . . . . . . . . . . Garrison Access Hacks 6 | . . . . 1 . . . . . . 1 . . . . . . . . . . . 1 1 1 1 Seal Access 6 | . . . . 1 . . . . . . 1 . . . . . . . . . . . 1 1 1 1 Unauthorized Hacks 51 | . 9 . 3 12 11 . 5 4 . . . . . . . . . 3 . . . . 2 2 . . Terminals 44 | . 8 . 3 12 8 . 4 3 . . . . . . . . . 2 . . . . 2 2 . . Track 3 | . . . . 1 . . 1 1 . . . . . . . . . . . . . . . . . . Assimilate 1 | . . . . . . . . . . . . . . . . . . . . . . . . 1 . . Botnet 17 | . 2 . 1 2 3 . 2 2 . . . . . . . . . 2 . . . . 2 1 . . Disrupt 1 | . . . . 1 . . . . . . . . . . . . . . . . . . . . . . Operators 1 | . . . . 1 . . . . . . . . . . . . . . . . . . . . . . Skim 21 | . 6 . 2 7 5 . 1 . . . . . . . . . . . . . . . . . . . Fabricators 2 | . . . . . . . 1 . . . . . . . . . . 1 . . . . . . . . Liberate 2 | . . . . . . . 1 . . . . . . . . . . 1 . . . . . . . . Repair Stations . | . . . . . . . . . . . . . . . . . . . . . . . . . . . Recycling Units 5 | . 1 . . . 3 . . 1 . . . . . . . . . . . . . . . . . . Recyclers 1 | . . . . . . . . 1 . . . . . . . . . . . . . . . . . . Tunnel 4 | . 1 . . . 3 . . . . . . . . . . . . . . . . . . . . . Scanalyzers . | . . . . . . . . . . . . . . . . . . . . . . . . . . . Garrison Access . | . . . . . . . . . . . . . . . . . . . . . . . . . . . Data Cores Recovered 4 | . . . . 1 . . . . . . . . 1 . . . . 1 . . . . 1 . . . Used 1 | . . . . . . . . . . . . . . . . . . 1 . . . . . . . . Hacking Detections 72 | . 7 . 3 10 5 . 3 11 1 . . . 1 . . . . 5 . . . . 5 9 5 7 Full Trace Events 17 | . 2 . . 3 . . 1 2 . . . . . . . . . 1 . . . . 1 2 3 2 Feedback Events 3 | . . . . . . . . . . . . . . . . . . . . . . . . 1 1 1 Corruption 2 | . . . . . . . . . . . . . . . . . . . . . . . . 1 1 . Hackware Fried 1 | . . . . . . . . . . . . . . . . . . . . . . . . . . 1 Feedback Blocked . | . . . . . . . . . . . . . . . . . . . . . . . . . . . Robot Schematics Acquired 1 | . . . . . . . . . . . . . . . . . . . . . . . . 1 . . Robots Built . | . . . . . . . . . . . . . . . . . . . . . . . . . . . Authchips . | . . . . . . . . . . . . . . . . . . . . . . . . . . . Time . | . . . . . . . . . . . . . . . . . . . . . . . . . . . Total Robot Build Rating . | . . . . . . . . . . . . . . . . . . . . . . . . . . . Part Schematics Acquired 8 | . . . . . . . . . . . . . . . . 4 . . . . . . . 4 . . Parts Built . | . . . . . . . . . . . . . . . . . . . . . . . . . . . Authchips . | . . . . . . . . . . . . . . . . . . . . . . . . . . . Time . | . . . . . . . . . . . . . . . . . . . . . . . . . . . Total Part Build Rating . | . . . . . . . . . . . . . . . . . . . . . . . . . . . Parts Repaired 5 | . 1 . . . . . . . . . . . . . . . . . . . . . . 2 2 . Time 111 | . 13 . . . . . . . . . . . . . . . . . . . . . . 54 44 . Parts Recycled . | . . . . . . . . . . . . . . . . . . . . . . . . . . . Recycled Matter . | . . . . . . . . . . . . . . . . . . . . . . . . . . . Retrieved Matter . | . . . . . . . . . . . . . . . . . . . . . . . . . . . Retrieved Components 10 | . 10 . . . . . . . . . . . . . . . . . . . . . . . . . Parts Scanalyzed . | . . . . . . . . . . . . . . . . . . . . . . . . . . . Part Schematics Acquired . | . . . . . . . . . . . . . . . . . . . . . . . . . . . Parts Damaged . | . . . . . . . . . . . . . . . . . . . . . . . . . . . Bothacking | -11 -10 -10 -9 -9 -9 -9 -6 -6 -6 -6 -5 -5 -5 -5 -5 -5 -4 -4 -4 -4 -4 -3 -3 -3 -2 -1 ------------ Run | Yrd Mat Min Mat Sto Rec Scr Fac Ext Cet Arc Fac Was Fac Upp Upp Zhi Pro Fac Upp Upp War Pro Res Qua Res Acc Used RIF Installer . | . . . . . . . . . . . . . . . . . . . . . . . . . . . Robots Hacked . | . . . . . . . . . . . . . . . . . . . . . . . . . . . Non-combat . | . . . . . . . . . . . . . . . . . . . . . . . . . . . Combat . | . . . . . . . . . . . . . . . . . . . . . . . . . . . Robot Hacks Applied . | . . . . . . . . . . . . . . . . . . . . . . . . . . . Relay Couplers Released 6 | . . . . . . . . . . . . . . . . . . 2 . . . . . . . 4 Machine Destruction 2 | . . . . . . . . . . . . . . . . . . 2 . . . . . . . . Programmers 4 | . . . . . . . . . . . . . . . . . . . . . . . . . . 4 Fabnet Peak Effective % . | . . . . . . . . . . . . . . . . . . . . . . . . . . . Robots Rewired 24 | . . . . . 6 . . 18 . . . . . . . . . . . . . . . . . . Allies Hacked 3 | . . . . . . . 2 . . . . . . . . . 1 . . . . . . . . . Hacks Repelled . | . . . . . . . . . . . . . . . . . . . . . . . . . . . Allies | -11 -10 -10 -9 -9 -9 -9 -6 -6 -6 -6 -5 -5 -5 -5 -5 -5 -4 -4 -4 -4 -4 -3 -3 -3 -2 -1 -------- Run | Yrd Mat Min Mat Sto Rec Scr Fac Ext Cet Arc Fac Was Fac Upp Upp Zhi Pro Fac Upp Upp War Pro Res Qua Res Acc Total Allies 54 | . . . . . 6 . . 25 . . . 19 . . . . . 3 . . . . 1 . . . Largest Group 19 | . . . . . 6 6 5 13 10 . . 19 19 19 13 13 13 13 . . . . 1 . . . Highest-Rated Group 684 | . . . . . 54 54 47 355 303 . . 684 684 684 511 511 511 534 . . . . 116 . . . Highest-Rated Ally 116 | . . . . . 18 18 18 76 39 . . 50 50 50 50 50 50 50 . . . . 116 . . . Total Orders 28 | . . . . . . 4 . 22 . . . . . . . . . . . . . . 1 1 . . STAY 11 | . . . . . . 1 . 10 . . . . . . . . . . . . . . . . . . ROAM 1 | . . . . . . 1 . . . . . . . . . . . . . . . . . . . . FOLLOW 9 | . . . . . . 1 . 8 . . . . . . . . . . . . . . . . . . EXPLORE 5 | . . . . . . . . 4 . . . . . . . . . . . . . . 1 . . . RETURN 2 | . . . . . . 1 . . . . . . . . . . . . . . . . . 1 . . Ally Attacks 389 | . . . . . . . 1 117 25 . . 51 4 19 24 . 33 99 . . . . 4 8 . 4 Total Damage 11566 | . . . . . . . 12 2298 572 . . 2818 99 1049 1293 . 844 2498 . . . . 17 42 . 24 Kills 55 | . . . . . . . . 15 1 . . 4 1 8 8 . 5 13 . . . . . . . . Allies Corrupted . | . . . . . . . . . . . . . . . . . . . . . . . . . . . Allies Melted 1 | . . . . . . . . 1 . . . . . . . . . . . . . . . . . . Intel | -11 -10 -10 -9 -9 -9 -9 -6 -6 -6 -6 -5 -5 -5 -5 -5 -5 -4 -4 -4 -4 -4 -3 -3 -3 -2 -1 ------- Run | Yrd Mat Min Mat Sto Rec Scr Fac Ext Cet Arc Fac Was Fac Upp Upp Zhi Pro Fac Upp Upp War Pro Res Qua Res Acc Robot Analysis Total 9 | . 4 . . . 1 . . . . . . . . . . 4 . . . . . . . . . . Derelict Logs Recovered 3 | . . 2 . . . . . . . . . . . . . . 1 . . . . . . . . . Drone Launches 22 | . . . . . . 1 . 4 . . . . . . . . . . . . . . 4 9 . 4 Drone Recoveries 20 | . . . . . . 1 . 4 . . . . . . . . . . . . . . 4 7 . 4 Exploration | -11 -10 -10 -9 -9 -9 -9 -6 -6 -6 -6 -5 -5 -5 -5 -5 -5 -4 -4 -4 -4 -4 -3 -3 -3 -2 -1 ------------- Run | Yrd Mat Min Mat Sto Rec Scr Fac Ext Cet Arc Fac Was Fac Upp Upp Zhi Pro Fac Upp Upp War Pro Res Qua Res Acc Turns Passed 42972 | 613 4253 3278 1031 2894 3035 7174 607 3226 298 578 111 1116 329 1116 574 246 2152 1227 555 395 752 665 751 2849 1370 1777 Spaces Moved 21124 | 372 2176 1809 511 1266 1129 3684 302 1557 149 298 69 517 181 660 321 149 1328 414 348 250 372 396 409 1220 510 727 Core 3 | 3 . . . . . . . . . . . . . . . . . . . . . . . . . . Treads 21121 | 369 2176 1809 511 1266 1129 3684 302 1557 149 298 69 517 181 660 321 149 1328 414 348 250 372 396 409 1220 510 727 Legs . | . . . . . . . . . . . . . . . . . . . . . . . . . . . Wheels . | . . . . . . . . . . . . . . . . . . . . . . . . . . . Hover . | . . . . . . . . . . . . . . . . . . . . . . . . . . . Flight . | . . . . . . . . . . . . . . . . . . . . . . . . . . . Fastest Speed 50 | 50 160 160 160 160 240 160 160 160 160 160 160 160 155 155 155 155 155 144 144 144 137 137 137 139 168 161 Average Speed 170 | 159 160 160 160 195 240 191 160 160 160 160 160 160 156 155 155 155 155 156 144 144 138 137 138 157 195 177 Slowest Speed 270 | 160 160 160 160 240 240 240 160 160 160 160 160 160 160 155 155 155 155 235 144 144 144 137 139 254 270 270 Overloaded Moves . | . . . . . . . . . . . . . . . . . . . . . . . . . . . Propulsion Burnouts . | . . . . . . . . . . . . . . . . . . . . . . . . . . . Robots Hopped . | . . . . . . . . . . . . . . . . . . . . . . . . . . . Cave-ins Triggered 1 | . . . . . . . . . . . . . . . . . . . 1 . . . . . . . Teleports 2 | . . . . . . . . . . . . . . . . . . . . . . . . 1 . 1 Exploration Rate (%) 58 | 21 99 100 42 92 99 89 9 86 65 100 3 96 5 68 42 63 97 24 57 58 49 64 13 91 19 32 Regions Visited 26 Branch Regions 16 Pre-discovered Areas 13 | . 3 1 . . 5 1 . . . . . . . . . 3 . . . . . . . . . . Known Exits Taken 18 | . . 1 1 . 1 . 1 1 1 1 . . 1 1 1 1 1 1 1 1 1 1 . 1 . . Unknown Exits Taken 6 | 1 1 . . 1 . 1 . . . . . . . . . . . . . . . . 1 . 1 . Scrap Searched 15 | . . 1 . . . 7 . . . . . . . 1 . . 1 . 2 1 . 2 . . . . Spaces Dug 147 | . . 14 10 3 1 . 1 . . . . 12 . 11 3 . . 15 34 . 7 3 6 11 5 11 Terrain Destroyed 821 | . 56 14 10 14 2 . 14 2 . 6 . 98 . 32 13 . 18 195 86 5 12 8 18 82 59 77 Melee 28 | . . 1 10 3 1 . 1 . . . . 5 . . . . . 3 . . . . . . 1 3 Projectile 217 | . . 1 . 1 1 . . 2 . 6 . 7 . 18 13 . 2 35 3 5 12 8 18 54 5 26 AOE 576 | . 56 12 . 10 . . 13 . . . . 86 . 14 . . 16 157 83 . . . . 28 53 48 Terrain Rammed . | . . . . . . . . . . . . . . . . . . . . . . . . . . . Walls Destroyed . | . . . . . . . . . . . . . . . . . . . . . . . . . . . Machines Disabled . | . . . . . . . . . . . . . . . . . . . . . . . . . . . Actions | -11 -10 -10 -9 -9 -9 -9 -6 -6 -6 -6 -5 -5 -5 -5 -5 -5 -4 -4 -4 -4 -4 -3 -3 -3 -2 -1 --------- Run | Yrd Mat Min Mat Sto Rec Scr Fac Ext Cet Arc Fac Was Fac Upp Upp Zhi Pro Fac Upp Upp War Pro Res Qua Res Acc Total 26286 | 384 2836 2156 640 1564 1375 3814 379 2053 194 363 71 769 230 732 384 164 1414 768 377 278 556 493 531 1852 817 1092 Wait 2869 | . 567 292 31 148 170 65 18 112 . 27 . 210 38 44 50 11 81 115 7 24 138 78 47 346 130 120 Move 21099 | 371 2175 1808 510 1265 1128 3683 301 1556 148 297 69 516 180 659 320 148 1327 414 347 249 371 395 408 1219 509 726 Hop . | . . . . . . . . . . . . . . . . . . . . . . . . . . . Pick Up 168 | 2 18 3 14 11 . 26 7 9 12 3 . 3 5 1 . 1 . 14 . . 3 . 7 16 8 5 Fast Attach 81 | 7 2 4 2 6 . 4 3 4 4 . . 1 . . . 2 . 7 . . 5 . 5 14 5 6 Attach 56 | . 1 . . . 1 2 4 2 1 . 2 1 2 2 . . . 4 1 . 2 1 2 13 6 9 Detach 18 | . . . . 1 . 1 1 . . . . . . . . . . . . . 1 . . 7 4 3 Swap 347 | . 9 10 19 38 9 2 9 37 4 12 . 5 . 6 . . 1 42 9 2 4 6 11 49 36 27 Drop 225 | 1 6 8 17 28 2 29 10 17 14 4 . 2 5 1 . 2 . 22 . . 3 . 9 31 11 3 Fire 1125 | 3 58 29 35 54 39 2 24 110 11 20 . 26 . 19 14 . 5 146 13 3 29 13 42 148 99 183 Melee 79 | . . 2 12 12 1 . 1 21 . . . 5 . . . . . 4 . . . . . 3 9 9 Ram . | . . . . . . . . . . . . . . . . . . . . . . . . . . . Kick . | . . . . . . . . . . . . . . . . . . . . . . . . . . . Crush 9 | . . . . 1 . . 1 . . . . . . . . . . . . . . . . 6 . 1 Escape Stasis . | . . . . . . . . . . . . . . . . . . . . . . . . . . . Rewire 210 | . . . . . 25 . . 185 . . . . . . . . . . . . . . . . . . Trap . | . . . . . . . . . . . . . . . . . . . . . . . . . . . Miscellaneous . | . . . . . . . . . . . . . . . . . . . . . . . . . . . Route ------- -11/Scrapyard -10/Materials (discovered 6 exits: *Mat x3 / *Min x2 / [*Sub]) -10/Mines (discovered 3 exits: *Mat x2 / [*Sub]) -9/Materials (discovered 4 exits: *Min x2 / *Sto x2) -9/Storage (discovered 2 exits: [*Mat] / *Rec) -9/Recycling (discovered 2 exits: [*Fac] / *Scr) -9/Scraptown (discovered 2 exits: *Fac x2) -6/Factory (discovered 4 exits: Low x2 / *Ext x2) -6/Extension (discovered 2 exits: *Fac / *Cet) -6/Cetus -6/Archives (discovered 3 exits: *Fac / *Hub x2) -5/Factory -5/Waste -5/Factory (discovered 2 exits: *Upp x2) -5/Upper Caves -5/Upper Caves -5/Zhirov -4/Proximity Caves -4/Factory (discovered 2 exits: *Upp x2) -4/Upper Caves -4/Upper Caves -4/Warlord -3/Proximity Caves -3/Research (discovered 4 exits: Res x3 / *Qua) -3/Quarantine -2/Research -1/Access To Epsilon Eridani History --------- Turn | Location | Event 4 | -11/Scrapyard | Discovered new exit (range 15) 614 | -11/Scrapyard | Entered Materials 615 | -10/Materials | Build established: Mutant 757 | -10/Materials | Discovered new exit (range 15) 1063 | -10/Materials | Discovered new exit (range 16) 1668 | -10/Materials | Discovered new exit (range 6) 1783 | -10/Materials | Discovered new exit (range 9) 2316 | -10/Materials | Discovered new exit (range 11) 2972 | -10/Materials | Learned Storage emergency access door positions 3041 | -10/Materials | Learned location of 2 exits from Mines 3112 | -10/Materials | Discovered new exit (range 9) 3149 | -10/Materials | Loaded intel: 12 trap records 3189 | -10/Materials | Loaded intel: 1 repair station location 3221 | -10/Materials | Learned Storage trap positions 3241 | -10/Materials | Learned 4 Subcaves zone layouts 3271 | -10/Materials | Learned location of Storage (-9) 3362 | -10/Materials | Learned location of Recycling (-9) 4040 | -10/Materials | Repaired Lgt. Treads 4867 | -10/Materials | Entered Mines 4868 | -10/Mines | Identified exit to Materials 4943 | -10/Mines | Learned Materials interactive machine intel 5011 | -10/Mines | Found the Drone Emporium 5019 | -10/Mines | Found Prototype Device 5019 | -10/Mines | Identified Splice Drone Bay 5109 | -10/Mines | Found a damaged Exp. Sensor Array with a note attached 5113 | -10/Mines | Found Prototype Device 5117 | -10/Mines | Assembled infested the area 5161 | -10/Mines | Identified Exp. Sensor Array 5927 | -10/Mines | Discovered new exit (range 5) 8145 | -10/Mines | Entered Materials 8145 | -9/Materials | Evolved 2 slots: Propulsion x1, Utility x1 8146 | -9/Materials | Identified exit to Storage 8147 | -9/Materials | Loaded intel: 18 interactive machine locations 8387 | -9/Materials | Identified exit to Mines 8555 | -9/Materials | Build established: Scavenger-Mutant 8976 | -9/Materials | Build established: Mutant 9176 | -9/Materials | Entered Storage 9177 | -9/Storage | Loaded intel: 20 trap records 9792 | -9/Storage | Discovered new exit (range 16) 10047 | -9/Storage | Build established: Scavenger-Mutant 10517 | -9/Storage | Build established: Mutant 10927 | -9/Storage | Used back door to open Recycling access 10927 | -9/Storage | Discovered new exit (range 3) 12070 | -9/Storage | Entered Recycling 12617 | -9/Recycling | Discovered new exit (range 10) 14261 | -9/Recycling | Learned Materials trap positions 14300 | -9/Recycling | Identified exit to Scraptown 14327 | -9/Recycling | Learned Storage stockpile data 14345 | -9/Recycling | Learned location of 2 exits from Materials 14355 | -9/Recycling | Learned Storage emergency access door positions 14376 | -9/Recycling | Learned location of Mines (-9) 14408 | -9/Recycling | Learned location of Mines (-8) 15040 | -9/Recycling | Scanned before Scraplab entrance 15076 | -9/Recycling | Entered Scraplab 15105 | -9/Recycling | Entered Scraptown 15105 | -9/Scraptown | Accompanied by 6 allies 15219 | -9/Scraptown | Build established: Commander-Mutant 15441 | -9/Scraptown | Visited Bundlers 15650 | -9/Scraptown | Visited UFD Registry 15684 | -9/Scraptown | Visited Cave Peace 15765 | -9/Scraptown | Visited Comm Corps 15989 | -9/Scraptown | Discovered new exit (range 3) 16046 | -9/Scraptown | Heard Great Nut preacher, LISTEN AND RECITE! 16231 | -9/Scraptown | Registered with UFD as "Novaback" 16309 | -9/Scraptown | Visited A0-MCA Data Center 16518 | -9/Scraptown | Visited Chapter 10 16614 | -9/Scraptown | Visited Derelict Rescue Squad 16647 | -9/Scraptown | Visited Abandonware Association 16664 | -9/Scraptown | Learned abandonware demo "OVRCLOCK.EXE" 16674 | -9/Scraptown | Learned abandonware demo "HACKBUD.EXE" 16758 | -9/Scraptown | Visited Scrap Suit Storage 16832 | -9/Scraptown | Visited Infowarlord's Domain 17089 | -9/Scraptown | Visited Research Penetration Think Tank 17142 | -9/Scraptown | Visited Scrapoid Pod Storage 17869 | -9/Scraptown | Visited Red Mages 17991 | -9/Scraptown | Visited Spacefarers 18034 | -9/Scraptown | Visited SPCMW 18277 | -9/Scraptown | Visited IN-MT5's Study 18684 | -9/Scraptown | Given an A+ rating by A0-MCA 18686 | -9/Scraptown | Found A0-MCA's Component Scanner 18774 | -9/Scraptown | Found Spectral Analyzer 18968 | -9/Scraptown | Discovered new exit (range 5) 19025 | -9/Scraptown | Found DRS Beacon 19753 | -9/Scraptown | Found Scrapoid Pod 22279 | -9/Scraptown | Entered Factory 22279 | -6/Factory | Accompanied by 5 allies 22279 | -6/Factory | Evolved 6 slots: Power x1, Propulsion x1, Utility x4 22304 | -6/Factory | Identified exit to Lower Caves 22304 | -6/Factory | Identified exit to Extension 22349 | -6/Factory | Lost 4 allies 22632 | -6/Factory | Build established: Mutant 22886 | -6/Factory | Entered Extension 23545 | -6/Extension | Rescued a captive Derelict 23550 | -6/Extension | Rescued a captive Derelict 23550 | -6/Extension | Rescued a captive Derelict 23647 | -6/Extension | Rescued a captive Derelict 23707 | -6/Extension | Rescued a captive Derelict 23743 | -6/Extension | Rescued a captive Derelict 23907 | -6/Extension | Build established: Commander-Mutant 23959 | -6/Extension | Lost 4 allies 24620 | -6/Extension | Spotted B-75 Beast 24631 | -6/Extension | Spotted B-75 Beast 24665 | -6/Extension | Allies destroyed B-75 Beast 24692 | -6/Extension | Lost 4 allies 24983 | -6/Extension | Build established: Scavenger-Mutant 25061 | -6/Extension | Disrupted transfer network 25265 | -6/Extension | Discovered new exit (range 10) 25266 | -6/Extension | Discovered new exit (range 6) 25763 | -6/Extension | Build established: Commander-Mutant 26087 | -6/Extension | Identified exit to Cetus 26112 | -6/Extension | Entered Cetus 26112 | -6/Cetus | Accompanied by 10 allies 26127 | -6/Cetus | Spotted Cetus Guard 26127 | -6/Cetus | Spotted Cetus Guard 26135 | -6/Cetus | Spotted Cetus Guard 26137 | -6/Cetus | Spotted Cetus Guard 26160 | -6/Cetus | Destroyed Cetus Guard 26163 | -6/Cetus | Destroyed Cetus Guard 26166 | -6/Cetus | Destroyed Cetus Guard 26175 | -6/Cetus | Destroyed Cetus Guard 26191 | -6/Cetus | Lost 9 allies 26357 | -6/Cetus | Discovered new exit (range 23) 26392 | -6/Cetus | Identified exit to Archives 26410 | -6/Cetus | Entered Archives 26565 | -6/Archives | Discovered new exit (range 23) 26592 | -6/Archives | Discovered new exit (range 24) 26612 | -6/Archives | Discovered new exit (range 23) 26665 | -6/Archives | Identified exit to Factory 26720 | -6/Archives | Identified exit to Hub_04(d) 26790 | -6/Archives | Build established: Scavenger-Mutant 26934 | -6/Archives | Unable to access archive contents 26988 | -6/Archives | Entered Factory 26988 | -5/Factory | Evolved 2 slots: Propulsion x1, Utility x1 27099 | -5/Factory | Sucked down chute 27099 | -5/Factory | Entered Waste 27102 | -5/Waste | Spotted C-40 Crusher 27103 | -5/Waste | Spotted C-40 Crusher 27104 | -5/Waste | Spotted C-40 Crusher 27176 | -5/Waste | Spotted C-40 Crusher 27179 | -5/Waste | Spotted C-40 Crusher 27233 | -5/Waste | Spotted C-40 Crusher 27421 | -5/Waste | Crushed by Compactor (0 parts destroyed, 1 dropped) 27422 | -5/Waste | Destroyed C-40 Crusher 27447 | -5/Waste | Crushed by Compactor (1 part destroyed) 27450 | -5/Waste | Destroyed C-40 Crusher 27499 | -5/Waste | Warlord forces began an assault 27504 | -5/Waste | Allies destroyed C-40 Crusher 27506 | -5/Waste | Allies destroyed C-40 Crusher 27509 | -5/Waste | Allies destroyed C-40 Crusher 27514 | -5/Waste | Allies destroyed C-40 Crusher 27778 | -5/Waste | Discovered new exit (range 24) 27814 | -5/Waste | Build established: Scavenger-Skirmisher 28196 | -5/Waste | Identified exit to Factory 28215 | -5/Waste | Entered Factory 28215 | -5/Factory | Accompanied by 19 allies 28369 | -5/Factory | Identified exit to Upper Caves 28544 | -5/Factory | Entered Upper Caves 28544 | -5/Upper Caves | Accompanied by 19 allies 28596 | -5/Upper Caves | Build established: Hacker-Skirmisher 29627 | -5/Upper Caves | Discovered new exit (range 7) 29635 | -5/Upper Caves | Identified exit to Upper Caves 29660 | -5/Upper Caves | Entered another Upper Caves area 29660 | -5/Upper Caves | Accompanied by 13 allies 29661 | -5/Upper Caves | Encountered a Warlord checkpoint 30141 | -5/Upper Caves | Discovered new exit (range 23) 30178 | -5/Upper Caves | Identified exit to Zhirov 30234 | -5/Upper Caves | Entered Zhirov 30234 | -5/Zhirov | Accompanied by 13 allies 30234 | -5/Zhirov | Discovered new exit (range 3) 30262 | -5/Zhirov | Met Zhirov 30290 | -5/Zhirov | Learned location of Quarantine (-3) 30290 | -5/Zhirov | Learned location of Testing (-2) 30290 | -5/Zhirov | Learned location of Command (-1) 30315 | -5/Zhirov | Zhirov requested help retrieving the SGEMP Prototype 30339 | -5/Zhirov | Found Alien Artifact 30339 | -5/Zhirov | Identified Integrated Reactor 30339 | -5/Zhirov | Installed Integrated Reactor, increased core energy generation (+10) 30361 | -5/Zhirov | Found Alien Artifact 30464 | -5/Zhirov | Identified exit to Proximity Caves 30480 | -5/Zhirov | Entered Proximity Caves 30480 | -4/Proximity Caves | Accompanied by 13 allies 30482 | -4/Proximity Caves | Spotter reported a threat 31822 | -4/Proximity Caves | Discovered new exit (range 5) 31826 | -4/Proximity Caves | Identified exit to Factory 31830 | -4/Proximity Caves | Learned Research security intel 32632 | -4/Proximity Caves | Entered Factory 32632 | -4/Factory | Accompanied by 11 allies 32632 | -4/Factory | Evolved 2 slots: Propulsion x1, Utility x1 32739 | -4/Factory | Garrison activated, responded to threat 32927 | -4/Factory | First assault squad dispatched 32990 | -4/Factory | Lost 9 allies 33082 | -4/Factory | Destroyed 12 combat bots 33306 | -4/Factory | Destroyed 12 combat bots 33463 | -4/Factory | Identified exit to Upper Caves 33634 | -4/Factory | Cargo convoy interrupted 33637 | -4/Factory | Spotted Striker 33670 | -4/Factory | Destroyed Striker 33711 | -4/Factory | Garrison activated, responded to threat 33791 | -4/Factory | Found Ragnarok Missile Launcher 33794 | -4/Factory | Destroyed 16 combat bots 33836 | -4/Factory | Found Ragnarok Missile Launcher 33859 | -4/Factory | Entered Upper Caves 34215 | -4/Upper Caves | Crushed by falling debris 34356 | -4/Upper Caves | Encountered a Warlord checkpoint 34388 | -4/Upper Caves | Discovered new exit (range 18) 34412 | -4/Upper Caves | Identified exit to Upper Caves 34414 | -4/Upper Caves | Entered another Upper Caves area 34613 | -4/Upper Caves | Attracted the attention of an 0b10 checkpoint 34796 | -4/Upper Caves | Discovered new exit (range 10) 34808 | -4/Upper Caves | Identified exit to Warlord 34809 | -4/Upper Caves | Entered Warlord 34858 | -4/Warlord | System corruption cleaned by Quarantine Array 35003 | -4/Warlord | Rebuked by Warlord 35028 | -4/Warlord | Warlord's base attacked by MAIN.C 35174 | -4/Warlord | Found Vortex Driver 35177 | -4/Warlord | Found Vortex Driver 35372 | -4/Warlord | Lost 3 allies 35378 | -4/Warlord | Warlord forces counterattacked 35450 | -4/Warlord | Spotted Striker 35459 | -4/Warlord | Spotted Executioner 35473 | -4/Warlord | Destroyed Executioner 35508 | -4/Warlord | Lost 8 allies 35508 | -4/Warlord | Found Exp. Core Analyzer 35531 | -4/Warlord | Discovered new exit (range 12) 35532 | -4/Warlord | Spotted Striker 35558 | -4/Warlord | Identified exit to Proximity Caves 35561 | -4/Warlord | Entered Proximity Caves 35584 | -3/Proximity Caves | Lost 6 allies 35810 | -3/Proximity Caves | Build established: Skirmisher 35955 | -3/Proximity Caves | Attracted the attention of an 0b10 checkpoint 36153 | -3/Proximity Caves | Discovered new exit (range 6) 36159 | -3/Proximity Caves | Identified exit to Research 36226 | -3/Proximity Caves | Entered Research 36226 | -3/Research | Evolved 2 slots: Power x1, Utility x1 36246 | -3/Research | Build established: Mutant 36424 | -3/Research | Identified exit to Research 36629 | -3/Research | Spotted B-86 Titan 36683 | -3/Research | Build established: Hacker-Mutant 36901 | -3/Research | Discovered new exit (range 20) 36977 | -3/Research | Entered Quarantine 37021 | -3/Quarantine | Found Alien Slashing Weapon 37081 | -3/Quarantine | Found Alien Energy Cannon 37081 | -3/Quarantine | Identified Core Cannon 37170 | -3/Quarantine | Repaired Adv. Heavy Treads 37988 | -3/Quarantine | Found Alien Artifact 37988 | -3/Quarantine | Identified Dimensional Node Initializer 37988 | -3/Quarantine | Initialized slip node 38150 | -3/Quarantine | Found Alien Artifact 38150 | -3/Quarantine | Identified Phase Armor 38441 | -3/Quarantine | Scanned by Researcher 38609 | -3/Quarantine | Found Alien Impact Weapon 38798 | -3/Quarantine | Repaired Hvy. Siege Treads 38882 | -3/Quarantine | Found Alien Artifact 39136 | -3/Quarantine | Found Alien Artifact 39136 | -3/Quarantine | Identified Phase Redirector 39154 | -3/Quarantine | Discovered exit to Research (range 13) 39289 | -3/Quarantine | System corruption reached 10% 39426 | -3/Quarantine | Found Quantum Capacitor 39505 | -3/Quarantine | Identified Core Stripper 39543 | -3/Quarantine | Spotted Fortress 39553 | -3/Quarantine | Destroyed Fortress 39562 | -3/Quarantine | Found Vortex Chain Reactor 39566 | -3/Quarantine | Found Exp. EM Disruption Field 39569 | -3/Quarantine | Found Thermal Barrier 39571 | -3/Quarantine | Found Exp. Force Field 39616 | -3/Quarantine | Identified Transdimensional Reconstructor 39616 | -3/Quarantine | Warped through subspace to slip node 39629 | -3/Quarantine | Found Transdimensional Reconstructor 39826 | -3/Quarantine | Entered Research 39826 | -2/Research | Evolved 2 slots: Utility x1, Weapon x1 39878 | -2/Research | Identified Sigix Broadsword 40291 | -2/Research | Repaired Adv. Heavy Treads 40429 | -2/Research | Found Hvy. Reactive Plating 40658 | -2/Research | Repaired Imp. Heavy Siege Treads 40742 | -2/Research | Found Vortex Chain Reactor 40826 | -2/Research | First assault squad dispatched 41080 | -2/Research | Discovered new exit (range 8) 41196 | -2/Research | Entered Access 41196 | -1/Access | Evolved 2 slots: Propulsion x1, Weapon x1 42008 | -1/Access | Garrison activated, responded to threat 42138 | -1/Access | Imp. Hacking Suite fried by hacking feedback 42196 | -1/Access | First assault squad dispatched 42199 | -1/Access | System corruption reached 10% 42270 | -1/Access | Warped through subspace 42273 | -1/Access | Garrison activated, responded to threat 42310 | -1/Access | Spotted B-99 Colossus 42434 | -1/Access | Build established: Mutant 42562 | -1/Access | Spotted B-99 Colossus 42571 | -1/Access | Destroyed B-99 Colossus 42695 | -1/Access | Spotted B-99 Colossus 42829 | -1/Access | Discovered new exit (range 3) 42863 | -1/Access | Spotted B-99 Colossus 42877 | -1/Access | Destroyed B-99 Colossus 42888 | -1/Access | Spotted B-99 Colossus 42909 | -1/Access | Destroyed B-99 Colossus 42950 | -1/Access | Destroyed 8 combat bots 42973 | *** | Escaped! Last Messages --------------- 42933_ U-05 Engineer lays Concrete. 42937_ Destroyed Adv. Sensor Array. 42937_ U-05 Engineer builds a Wall. 42938_ U-05 Engineer lays Concrete. 42941_ W-44 Eye destroyed. 42942_ U-05 Engineer lays Concrete. 42942_ U-05 Engineer builds a Wall. 42943_ U-05 Engineer lays Concrete. 42946_ ALERT: Significant disruption in Zone 1P, assault force dispatched. 42946_ U-05 Engineer lays Concrete. 42947_ U-05 Engineer builds a Wall. 42949_ Acquired 22 matter. 42950_ Acquired 15 matter. 42952_ System corrupted: Energy discharge (-329). 42955_ Acquired 5 matter. 42957_ Acquired 8 matter. 42958_ Acquired 14 matter. 42971_ K-01 Serf collects debris. Map ----- +----------------------------------------------------+ | ?????????????????????? #?????????????????????? | | ?????????????????????? ?????????????????????? | | ?????????????????????? % ?????????????????????? | | ?????????????????????? [ # ????????????????????? | | ?????????????????????? # ????????????????????? | | ??????????????????????# #?????????????????????? | | ??????????????????##?# #?????????????????????? | | ??????????????????#?#?# #?????????????????????? | | ?????????????????#??### #?#???????????????????? | | ???????????? ?? ???#### ####??????????????????? | | ???????????? ??????# ##?????????????????? | | ?????????????????#?# ! #?#????????????????? | | ????????? ???? ???## ! ##?????????????????? | | ????????#???#?????## ##?????????????????? | | ?????????????###???# *[ #??????????????????? | | ?????????? ????#???# #??? ??????????????? | | ????????? ??##???#?# #??? ??????????????? | | ????????????#??????#" """""""##?? ? ????????????? | | ??????????????#????#% """??"??#??#???????????????? | | ????????????????#??# "?"??????#????#????????????? | | ??????#???#?????#??#" """"""""#?#????????????????? | | ??????###???##???### #???? ????????????? | | ??????#???#?#???#?## """""" #?# ???????????????? | | ??????#???##???###?# " "????? ?? ???????????? | | ??????##?#?##??##??# " "" " ??#???? ????????????? | | ??????#???#?#???#?## " "@ "???#??? ????????????? | | ????????#?#?#??#?#?# " "? #?# ???????????????? | | ????????##?? ?#?#### " """" ##? ???????????????? | | ??????? #?#?## #?#????????????????? | | ?????????? #???## #?? ? ?????????????? | | ??????#?#?? ? ?#??#"""" """""""##? ??????????????? | | ??#????###???#???###"" #?#????????????????? | | ?? ???????# ???##?#"" #???? ?????????????? | | ??????????# ##?##?#"" #??? ????????????? | | ????????? + ???##??#T #?# ???"??????????? | | ?"?????? ?# ????##?#"" #???? ?????????????? | | ?? ?? ????# ??#?###"" #??????????????????? | | ???????? # #######"" ####??#????????????? | | ????? ????# ????? | | ##??#?#?### ????? | | ????##########+####################+#+#####??????? | | ????# ##?????????##?????? ????????????? | | ?#?## ##?##??#????????????????????????? | | ?#??# ###???#??#??#?#???? ????????????? | | ?#??# ""#??#?#?#????????????????????????? | | ??#?# ""#??????##???????????????????????? | | ?#?##[ ""#???????#???#???????????????????? | | #####*! T#????##?##?#????????????????????? | | / !!! # #??????????????????????????? | | #####=[! ""#????#??????????????????????????? | +----------------------------------------------------+ Best States ------------- Heat Dissipation 114 Coolant Potential 100 Energy Generation 89 Energy Capacity 940 Matter Stores 300 Matter Capacity 300 Sight Range 24 Robot Scan Range 20 Terrain Scan Range 16 Terrain Scan Density 85 Jamming Range 14 Base Temperature (-) 200 Armor Coverage 1200 Resistance: KI 60 Resistance: TH 70 Resistance: EX 20 Resistance: EM 95 Resistance: I 20 Resistance: S 20 Resistance: P 20 Evasion (%) 40 Core Analysis 8 Recoil Reduction 7 Matter Filtering 30 Offensive Hacking 22 Defensive Hacking 14 Item Schematics ----------------- Assault Drone Bay | -5/Zhirov | Free Exp. Heat Sink | -5/Zhirov | Free Exp. Optical Array | -5/Zhirov | Free Imp. Arc Thrower | -5/Zhirov | Free Adv. Gravity Neutralizer | -3/Quarantine | Archive Exp. Coolant Injector | -3/Quarantine | Archive Hdn. Centrium Wheel | -3/Quarantine | Archive Exp. Terrain Scan Processor | -3/Quarantine | Archive Robot Schematics ------------------ K-01 Serf | -3/Quarantine | Archive Fabricated ------------ Nothing Alien Tech Used ----------------- Integrated Reactor Core Cannon Dimensional Node Initializer Phase Armor Phase Redirector Core Stripper Transdimensional Reconstructor Sigix Broadsword Achievements -------------- Fist Fight Challenges ------------ None Game ------ Seed TimingTrapBox Manual? 0 Play Time 07:46:57 Cumulative 588.1 hours Start 2024.09.06 @ 21:58:10 End 2024.09.11 @ 00:00:44 Sessions 23 Manual Loads 0 Difficulty Adventurer Special Mode None Game No. 48 Rogue 9 Adventurer 25 Explorer 14 Win Type 0 Total 34 Types 20/2/8/1/1/2/0/0/0 Lore% 77 Gallery% 88 Achievement% 77 Wizard Run 0 Options --------- Layout 2 ASCII 0 Keyboard 0 Movement Mouse Keybinds 0 Fullscreen 2 Font 48/Crisp++ Map View 50x44 Zoom Use 3% Tactical HUD 1 Map Filters NONE Filters NONE Steam 0 RUN: 8741d708-c43f-4ec8-92e7-368c3f9bc834